bitfinex/quotes_SOLUSD_20220113
["timestamp","ask_amount","ask_price","bid_price","bid_amount"]
[1642061103853,26.3195,151.59,151.5,42.7337]
[1642061104053,2.638,151.59,151.5,42.7337]
[1642061104255,1.95386887,151.62,151.51,2.638]
[1642061104453,11.84996887,151.62,151.53,9.8952]
[1642061104653,11.84996887,151.62,151.53,12.5332]
[1642061104852,34.27025903,151.62,151.53,12.7832]
[1642061105253,22.49029016,151.62,151.53,13.0432]
[1642061106352,22.74029016,151.62,151.53,13.0432]
[1642061106754,0.32,151.62,151.54,26.03131582]
[1642061106954,0.07,151.62,151.55,12.532]
[1642061108055,0.07,151.62,151.55,12.782]
[1642061108254,0.07,151.62,151.55,13.042]
[1642061109254,0.07,151.62,151.55,10.404]
[1642061109454,0.07,151.62,151.56,2.638]
[1642061109656,0.07,151.62,151.56,9.8936]
[1642061109855,0.07,151.62,151.56,10.1436]
[1642061110654,0.07,151.62,151.56,0.25]
[1642061110855,0.07,151.62,151.55,2.898]
[1642061111058,0.07,151.62,151.55,0.26]
[1642061111456,0.07,151.62,151.54,37.0485]
[1642061111655,0.07,151.62,151.54,34.4105]
[1642061113258,0.07,151.62,151.54,34.1605]
[1642061114462,0.07,151.62,151.54,34.4105]
[1642061116564,0.07,151.62,151.55,2.638]
[1642061116764,0.07,151.62,151.56,9.8936]
[1642061116965,0.07,151.62,151.56,10.1436]
[1642061118265,0.07,151.62,151.55,2.638]
[1642061118563,0.07,151.62,151.54,36.5385]
[1642061118763,0.07,151.62,151.54,34.1505]
[1642061119566,0.07,151.62,151.54,34.4105]
[1642061119967,23.0875,151.62,151.54,34.4105]
[1642061120166,23.3375,151.62,151.54,34.4105]
[1642061121572,23.0875,151.62,151.54,34.4105]
[1642061122171,0.07,151.62,151.54,34.4105]
[1642061122370,0.07,151.62,151.55,2.638]
[1642061122571,0.07,151.62,151.55,2.888]
[1642061123672,0.07,151.62,151.55,2.638]
[1642061124874,12.6036,151.62,151.54,24.0061]
[1642061125074,12.8536,151.62,151.54,24.0061]
[1642061126678,14.73746887,151.62,151.54,24.0061]
[1642061127076,4.59186887,151.62,151.55,78.258]
[1642061127477,4.59186887,151.62,151.56,1.09918548]
[1642061127678,4.59186887,151.62,151.57,12.138]
[1642061128077,4.59186887,151.62,151.57,18.648]
[1642061128477,2.708,151.62,151.57,28.5407]
[1642061128877,2.708,151.62,151.57,28.2807]
[1642061129078,2.708,151.62,151.57,28.0307]
[1642061129279,0.07,151.62,151.57,25.3927]
[1642061129478,0.07,151.62,151.57,19.3927]
[1642061130279,0.07,151.62,151.57,9.5]
[1642061131082,0.07,151.62,151.55,9.8946]
[1642061132086,0.07,151.62,151.55,10.1446]
[1642061135086,0.07,151.62,151.55,10.4046]
[1642061136386,0.07,151.62,151.55,16.4046]
[1642061136788,0.07,151.62,151.55,10.4046]
[1642061136989,0.07,151.62,151.55,16.4046]
[1642061137587,0.07,151.62,151.55,34.2272]
[1642061137788,0.07,151.62,151.55,43.7272]
[1642061138187,0.07,151.62,151.56,31.66393715]
[1642061138387,0.07,151.62,151.57,9.8933]
[1642061139889,0.07,151.62,151.57,19.3933]
[1642061141192,0.07,151.62,151.55,33.9673]
[1642061141392,0.07,151.62,151.55,33.7173]
[1642061142496,0.07,151.62,151.57,9.8938]
[1642061145499,0.07,151.62,151.57,10.1438]
[1642061146099,0.07,151.62,151.57,9.8938]
[1642061146500,0.07,151.62,151.57,12.7818]
[1642061146699,0.07,151.62,151.57,12.5318]
[1642061147601,0.07,151.62,151.57,9.8938]
[1642061148423,0.07,151.62,151.58,9.5]
[1642061148626,0.07,151.62,151.6,9.8914]
[1642061149024,0.07,151.62,151.6,19.6414]
[1642061149427,0.07,151.62,151.6,19.9014]
[1642061149626,0.07,151.62,151.61,2.638]
[1642061149825,0.07,151.62,151.61,12.5278]
[1642061150029,0.07,151.62,151.61,13.0378]
[1642061151028,0.07,151.62,151.61,10.3998]
[1642061152127,6.13439994,151.62,151.61,5.033821]
[1642061152330,0.07,151.62,151.61,5.033821]
[1642061152533,1.88386887,151.69,151.61,86.653821]
[1642061152730,33.46113477,151.7,151.62,2.637]
[1642061152929,33.46113477,151.7,151.66,9.8877]
[1642061153129,1.88386887,151.7,151.66,9.8877]
[1642061153329,1.88386887,151.7,151.66,10.1477]
[1642061153731,2.04995375,151.72,151.66,10.1477]
[1642061154131,2.29995375,151.72,151.66,10.1477]
[1642061154730,2.04995375,151.72,151.66,10.3977]
[1642061154931,0.16608488,151.72,151.66,10.3977]
[1642061155331,0.16608488,151.72,151.66,16.3977]
[1642061155532,0.16608488,151.72,151.66,16.1477]
[1642061156335,0.16608488,151.72,151.66,10.1477]
[1642061156535,0.16608488,151.72,151.66,16.1477]
[1642061157137,0.16608488,151.72,151.66,9.8877]
[1642061157338,0.16608488,151.72,151.66,10.1477]
[1642061157538,0.16608488,151.72,151.66,16.1477]
[1642061158137,0.16608488,151.72,151.66,25.6477]
[1642061159038,0.16608488,151.72,151.66,91.7677]
[1642061159242,0.16608488,151.72,151.66,25.8977]
[1642061159840,0.16608488,151.72,151.66,19.8977]
[1642061160040,0.16608488,151.72,151.66,25.8977]
[1642061160640,0.16608488,151.72,151.66,19.8977]
[1642061161041,0.16608488,151.72,151.66,25.8977]
[1642061161438,0.16608488,151.72,151.66,19.8977]
[1642061161838,0.16608488,151.72,151.66,25.8977]
[1642061162038,0.16608488,151.72,151.67,2.636]
[1642061162240,0.16608488,151.72,151.69,9.8855]
[1642061163042,0.16608488,151.72,151.69,10.1355]
[1642061163244,0.16608488,151.72,151.69,10.3955]
[1642061163848,0.16608488,151.72,151.69,10.1355]
[1642061164045,0.16608488,151.72,151.68,9.5]
[1642061164244,0.16608488,151.72,151.68,9.76]
[1642061164446,0.16608488,151.72,151.68,9.5]
[1642061166045,0.16608488,151.72,151.68,19.3865]
[1642061166471,0.16608488,151.72,151.68,22.5325]
[1642061166873,0.16608488,151.72,151.69,66.12]
[1642061167073,0.16608488,151.72,151.7,9.884]
[1642061167279,0.16608488,151.72,151.71,66.12]
[1642061167473,0.16608488,151.72,151.71,66.63]
[1642061167875,0.16608488,151.72,151.71,72.63]
[1642061168476,0.16608488,151.72,151.71,92.0119]
[1642061168676,1e-08,151.72,151.71,92.0119]
[1642061169376,1e-08,151.72,151.71,93.11108548]
[1642061169779,1e-08,151.72,151.71,92.0119]
[1642061170582,1.60290276,151.79,151.71,92.0119]
[1642061170779,1.60290276,151.79,151.71,210.7219]
[1642061170981,1.88386887,151.83,151.72,62.0]
[1642061171179,1.88386887,151.83,151.77,9.8779]
[1642061171381,1.88386887,151.83,151.77,85.4979]
[1642061171680,1.88386887,151.87,151.77,92.0079]
[1642061171882,1.88386887,151.87,151.79,66.12]
[1642061172081,1.01786887,151.89,151.8,9.5]
[1642061172279,2.634,151.89,151.8,9.5]
[1642061172479,2.634,151.89,151.8,16.01]
[1642061172679,2.634,151.89,151.82,9.8761]
[1642061172879,840.48419203,151.92,151.83,9.5]
[1642061172880,2.634,151.9,151.83,9.5]
[1642061173082,840.48419203,151.92,151.83,10.01]
[1642061173083,2.633,151.91,151.83,10.01]
[1642061173280,2.633,151.91,151.83,9.76]
[1642061173779,31.57296016,151.9,151.83,9.76]
[1642061173978,2.633,151.89,151.83,9.76]
[1642061174385,2.633,151.89,151.83,19.886]
[1642061174585,77.6791,151.92,151.84,2.634]
[1642061174785,77.6791,151.92,151.84,9.5]
[1642061174985,77.6791,151.92,151.84,76.13]
[1642061175385,23.11654872,151.91,151.84,76.13]
[1642061175587,23.36654872,151.91,151.84,76.13]
[1642061175987,23.36654872,151.91,151.86,9.8742]
[1642061176185,23.36654872,151.91,151.84,10.01]
[1642061176385,23.36654872,151.91,151.84,9.76]
[1642061176586,2.633,151.9,151.84,9.76]
[1642061176788,0.04,151.89,151.84,9.76]
[1642061177389,0.08,151.89,151.84,9.5]
[1642061179696,0.08,151.89,151.81,9.5]
[1642061180494,0.08,151.89,151.81,9.75]
[1642061180898,0.08,151.89,151.81,9.5]
[1642061181898,9.958,151.89,151.81,9.5]
[1642061182198,10.208,151.89,151.81,9.75]
[1642061182397,10.208,151.89,151.81,9.5]
[1642061183007,0.08,151.89,151.81,85.7571]
[1642061183206,0.08,151.89,151.82,2.634]
[1642061183605,0.08,151.89,151.82,3.144]
[1642061184205,0.08,151.89,151.82,13.0201]
[1642061184604,0.08,151.89,151.82,12.7601]
[1642061184805,0.08,151.89,151.82,2.884]
[1642061185006,0.08,151.89,151.82,3.144]
[1642061185437,0.08,151.89,151.83,85.4952]
[1642061185835,0.08,151.89,151.83,86.0052]
[1642061186736,0.08,151.89,151.84,2.634]
[1642061186934,0.08,151.89,151.85,9.5]
[1642061187337,0.08,151.89,151.85,10.01]
[1642061188036,0.08,151.89,151.86,2.633]
[1642061188435,0.08,151.89,151.86,3.143]
[1642061188638,0.08,151.89,151.86,2.883]
[1642061188835,0.08,151.89,151.86,3.143]
[1642061189037,0.08,151.89,151.86,13.0168]
[1642061189637,0.08,151.89,151.86,2.883]
[1642061190036,0.08,151.89,151.86,0.25]
[1642061190238,0.08,151.89,151.85,10.01]
[1642061191536,0.08,151.89,151.86,2.633]
[1642061191740,0.08,151.89,151.85,19.8843]
[1642061193140,0.08,151.89,151.86,68.753]
[1642061193340,0.08,151.89,151.87,19.3724]
[1642061193542,0.08,151.89,151.87,19.8824]
[1642061193742,0.08,151.89,151.87,10.01]
[1642061193940,0.08,151.89,151.87,9.76]
[1642061194539,0.08,151.89,151.87,10.01]
[1642061194941,0.08,151.89,151.87,86.0029]
[1642061195742,0.08,151.89,151.87,10.01]
[1642061196748,0.08,151.89,151.87,9.76]
[1642061196943,0.08,151.89,151.87,10.01]
[1642061197645,0.08,151.89,151.87,76.13]
[1642061198046,0.08,151.89,151.87,10.01]
[1642061199145,0.08,151.89,151.87,19.8827]
[1642061200045,0.08,151.89,151.87,27.2197]
[1642061200446,0.08,151.89,151.87,93.3397]
[1642061200847,0.08,151.89,151.87,27.2197]
[1642061201049,0.08,151.89,151.87,19.8827]
[1642061201250,0.08,151.89,151.87,19.6227]
[1642061202452,0.08,151.89,151.87,19.8827]
[1642061205980,0.08,151.89,151.87,10.01]
[1642061206382,0.08,151.89,151.87,9.5]
[1642061206586,3.11219997,151.89,151.87,9.5]
[1642061206783,20.64643337,151.89,151.87,9.5]
[1642061206983,20.89643337,151.89,151.83,9.5]
[1642061208383,3.11219997,151.89,151.83,9.75]
[1642061208584,3.11219997,151.89,151.83,75.87]
[1642061209583,3.11219997,151.89,151.83,76.13]
[1642061210184,0.08,151.89,151.83,86.0055]
[1642061210386,0.08,151.89,151.84,30.31840191]
[1642061210585,0.08,151.89,151.85,9.5]
[1642061210986,0.08,151.89,151.85,10.01]
[1642061211187,0.08,151.89,151.85,76.13]
[1642061211387,0.08,151.89,151.86,1.09918314]
[1642061211598,0.08,151.89,151.88,66.12]
[1642061211996,0.08,151.89,151.88,75.88]
[1642061213202,0.08,151.89,151.88,85.7519]
[1642061213799,0.08,151.89,151.88,86.0019]
[1642061213999,0.08,151.89,151.88,92.0019]
[1642061214502,0.08,151.89,151.88,88.6349]
[1642061215801,99.58,151.93,151.88,88.6349]
[1642061216003,99.58,151.93,151.9,9.8707]
[1642061216405,99.58,151.93,151.9,10.3807]
[1642061217303,99.58,151.93,151.9,86.0007]
[1642061219008,99.58,151.93,151.9,85.7507]
[1642061219613,99.58,151.93,151.9,19.6307]
[1642061220009,99.58,151.93,151.91,75.9899]
[1642061220411,99.58,151.93,151.91,76.2499]
[1642061220610,99.58,151.93,151.91,76.4999]
[1642061221011,99.58,151.93,151.91,82.4999]
[1642061221212,99.58,151.93,151.91,76.4999]
[1642061221414,99.58,151.93,151.91,82.4999]
[1642061221611,99.58,151.93,151.91,10.3799]
[1642061222012,99.58,151.93,151.91,0.51]
[1642061222213,99.58,151.93,151.9,10.01]
[1642061223212,99.58,151.93,151.9,10.03]
[1642061224112,99.58,151.93,151.9,9.78]
[1642061224314,99.58,151.93,151.9,19.651]
[1642061224515,117.65588956,151.93,151.9,9.52]
[1642061226118,6.06439994,151.92,151.9,9.52]
[1642061226317,117.65588956,151.93,151.9,9.52]
[1642061227719,6.06439994,151.92,151.9,9.52]
[1642061228318,99.58,151.93,151.9,9.52]
[1642061229118,3.03219997,151.92,151.9,9.52]
[1642061229821,99.58,151.93,151.9,9.52]
[1642061230444,3.03219997,151.92,151.9,9.52]
[1642061231544,3.03219997,151.92,151.9,9.78]
[1642061231746,3.03219997,151.92,151.9,10.03]
[1642061232045,99.58,151.93,151.9,10.03]
[1642061234144,99.58,151.93,151.9,9.78]
[1642061234745,99.58,151.93,151.9,9.52]
[1642061235346,99.58,151.93,151.9,85.511]
[1642061235547,99.58,151.93,151.9,85.761]
[1642061235747,99.58,151.93,151.9,19.641]
[1642061235947,99.58,151.93,151.9,19.901]
[1642061237147,99.58,151.93,151.9,19.641]
[1642061237550,99.58,151.93,151.9,9.52]
[1642061237948,99.83,151.93,151.9,9.52]
[1642061238149,6.06439994,151.92,151.9,0.02]
[1642061240066,80.633,151.91,151.84,2.633]
[1642061240254,78.0,151.9,151.82,9.5]
[1642061240554,2.634,151.89,151.8,9.5]
[1642061240755,24.76363527,151.88,151.8,9.5]
[1642061240953,25.01363527,151.88,151.8,19.3775]
[1642061241355,26.7587,151.89,151.8,19.3775]
[1642061241554,24.3747,151.89,151.8,19.3775]
[1642061242154,24.3747,151.89,151.8,85.4975]
[1642061242558,2.634,151.88,151.8,85.4975]
[1642061242755,24.1247,151.89,151.81,2.634]
[1642061242960,24.1247,151.89,151.82,9.8762]
[1642061243557,24.3747,151.89,151.81,2.634]
[1642061243757,24.3747,151.89,151.81,2.884]
[1642061243958,24.3747,151.89,151.81,3.144]
[1642061245060,24.3747,151.89,151.81,2.894]
[1642061245259,24.3747,151.89,151.81,12.5109]
[1642061245459,24.3747,151.89,151.81,2.634]
[1642061245758,24.1247,151.89,151.81,2.634]
[1642061246359,24.1247,151.89,151.82,9.5]
[1642061246658,2.634,151.92,151.83,35.5436]
[1642061246861,2.634,151.92,151.85,66.12]
[1642061247158,2.634,151.92,151.86,2.633]
[1642061247362,2.634,151.92,151.87,102.60417042]
[1642061247662,2.634,151.92,151.88,12.133]
[1642061248060,2.634,151.92,151.88,12.643]
[1642061248260,99.58,151.93,151.88,10.01]
[1642061248460,99.58,151.93,151.89,9.8719]
[1642061248662,99.58,151.93,151.89,19.3719]
[1642061249663,99.58,151.93,151.89,9.5]
[1642061250462,99.83,151.93,151.89,9.5]
[1642061251867,99.58,151.93,151.89,9.5]
[1642061252566,99.58,151.93,151.89,9.75]
[1642061257910,99.58,151.93,151.89,9.5]
[1642061258106,99.58,151.93,151.89,19.3719]
[1642061258304,99.58,151.93,151.89,9.5]
[1642061259505,99.58,151.93,151.89,9.75]
[1642061260409,99.58,151.93,151.89,9.5]
[1642061260607,99.58,151.93,151.89,9.75]
[1642061260808,99.58,151.93,151.89,9.5]
[1642061262312,99.58,151.93,151.89,9.75]
[1642061262509,99.58,151.93,151.89,19.8819]
[1642061265310,99.58,151.93,151.89,9.5]
[1642061265513,99.83,151.93,151.89,9.5]
[1642061265810,99.83,151.93,151.86,12.133]
[1642061266011,99.83,151.93,151.86,12.383]
[1642061266815,99.83,151.93,151.86,9.75]
[1642061267216,99.83,151.93,151.86,19.6239]
[1642061269217,99.83,151.93,151.86,9.75]
[1642061270318,99.83,151.93,151.86,12.383]
[1642061272022,99.58,151.93,151.86,12.643]
[1642061273023,99.58,151.93,151.86,12.383]
[1642061273229,99.58,151.93,151.86,19.624]
[1642061273525,99.83,151.93,151.86,19.624]
[1642061273927,99.58,151.93,151.86,19.624]
[1642061274528,99.58,151.93,151.87,2.633]
[1642061274729,99.58,151.93,151.87,12.506]
[1642061274930,99.58,151.93,151.87,13.016]
[1642061277053,99.58,151.93,151.87,3.143]
[1642061277454,99.58,151.93,151.87,0.51]
[1642061277654,99.58,151.93,151.87,0.25]
[1642061277853,99.58,151.93,151.85,2.633]
[1642061278053,99.58,151.93,151.85,18.643]
[1642061278953,99.58,151.93,151.85,18.383]
[1642061279154,99.58,151.93,151.86,9.874]
[1642061279554,99.58,151.93,151.86,10.124]
[1642061279957,99.58,151.93,151.86,16.124]
[1642061280556,99.58,151.93,151.86,10.124]
[1642061280955,99.58,151.93,151.86,16.124]
[1642061281455,99.58,151.93,151.86,10.124]
[1642061281855,99.58,151.93,151.86,16.124]
[1642061283562,99.58,151.93,151.86,16.384]
[1642061283964,99.58,151.93,151.86,10.384]
[1642061284364,99.58,151.93,151.86,16.384]
[1642061285968,99.58,151.93,151.86,16.124]
[1642061286568,99.58,151.93,151.86,10.384]
[1642061286970,99.58,151.93,151.87,9.5]
[1642061287173,99.58,151.93,151.89,9.8719]
[1642061287572,99.58,151.93,151.89,10.3819]
[1642061289671,99.58,151.93,151.89,10.1219]
[1642061290173,99.58,151.93,151.89,0.25]
[1642061290578,99.58,151.93,151.87,12.383]
[1642061290976,99.58,151.93,151.87,12.643]
[1642061291776,99.58,151.93,151.88,9.8726]
[1642061291974,99.58,151.93,151.88,19.8826]
[1642061292877,99.58,151.93,151.88,87.10587649]
[1642061293076,99.58,151.93,151.88,93.10587649]
[1642061298384,99.58,151.93,151.88,92.85587649]
[1642061299384,99.58,151.93,151.88,92.59587649]
[1642061299786,99.58,151.93,151.88,92.84587649]
[1642061300991,99.58,151.93,151.88,93.17587649]
[1642061301387,99.58,151.93,151.88,26.79587649]
[1642061302211,99.08,151.93,151.88,92.91587649]
[1642061302613,99.08,151.93,151.88,93.17587649]
[1642061304715,99.08,151.93,151.88,92.92587649]
[1642061304914,85.33373267,151.93,151.88,92.92587649]
[1642061305916,85.33373267,151.93,151.88,93.17587649]
[1642061307117,85.33373267,151.93,151.88,103.25667649]
[1642061307516,2.633,151.98,151.88,103.25667649]
[1642061307717,26.8538,151.98,151.88,103.25667649]
[1642061308319,27.1038,151.98,151.88,103.25667649]
[1642061309017,27.1038,151.98,151.88,105.88867649]
[1642061315732,26.8538,151.98,151.88,105.88867649]
[1642061315932,27.1038,151.98,151.88,105.88867649]
[1642061316332,24.4708,151.98,151.88,105.88867649]
[1642061319538,24.2208,151.98,151.88,105.63867649]
[1642061319742,24.4708,151.98,151.88,105.63867649]
[1642061320971,24.4708,151.98,151.88,105.88867649]
[1642061321775,24.2208,151.98,151.88,105.88867649]
[1642061322771,24.2208,151.98,151.9,28.91144549]
[1642061322973,24.2208,151.98,151.93,9.8701]
[1642061323372,24.2208,151.98,151.93,10.3801]
[1642061323571,24.4708,151.98,151.93,10.3801]
[1642061324072,24.2208,151.98,151.93,10.3801]
[1642061325772,24.4708,151.98,151.93,10.3801]
[1642061325972,24.2208,151.98,151.93,10.3801]
[1642061327578,24.2208,151.98,151.93,10.1301]
[1642061327774,24.2208,151.98,151.93,10.3801]
[1642061328874,24.4708,151.98,151.93,10.3801]
[1642061329375,24.2208,151.98,151.93,10.3801]
[1642061331377,24.4708,151.98,151.93,10.1301]
[1642061331579,24.2208,151.98,151.93,10.1301]
[1642061332078,24.4708,151.98,151.93,10.1301]
[1642061332278,24.2208,151.98,151.93,10.1301]
[1642061333079,24.2208,151.98,151.93,10.3801]
[1642061333579,24.2208,151.98,151.93,16.3801]
[1642061334387,24.2208,151.98,151.93,10.3801]
[1642061337585,24.2208,151.98,151.93,16.3801]
[1642061337990,24.2208,151.98,151.93,10.3801]
[1642061339027,24.2208,151.98,151.93,16.3801]
[1642061339188,24.4708,151.98,151.93,10.1301]
[1642061339488,24.2208,151.98,151.93,10.1301]
[1642061339791,2.632,151.97,151.89,1.8288287]
[1642061339989,2.882,151.97,151.89,1.8288287]
[1642061340292,12.7549,151.97,151.89,1.8288287]
[1642061340492,41.87830377,151.96,151.89,1.8288287]
[1642061340688,2.632,151.95,151.89,1.8288287]
[1642061341292,2.632,151.95,151.86,9.5]
[1642061341489,99.48386414,151.96,151.87,2.633]
[1642061341690,99.48386414,151.96,151.87,3.73627649]
[1642061342091,99.48386414,151.96,151.87,3.98627649]
[1642061342291,97.598,151.96,151.89,9.8724]
[1642061342491,97.848,151.96,151.89,16.1224]
[1642061342894,97.848,151.96,151.89,16.3824]
[1642061343095,97.848,151.96,151.9,66.12]
[1642061343391,97.848,151.96,151.91,9.8707]
[1642061343592,97.848,151.96,151.91,10.1307]
[1642061343800,97.598,151.96,151.91,10.1307]
[1642061343992,97.848,151.96,151.91,10.3807]
[1642061344196,97.598,151.96,151.91,10.3807]
[1642061345494,97.598,151.96,151.91,39.93100526]
[1642061345697,97.598,151.96,151.92,2.632]
[1642061345898,97.598,151.96,151.94,9.8683]
[1642061346095,72.6466,151.96,151.94,10.3783]
[1642061346295,85.6642927,151.99,151.94,10.3783]
[1642061350600,85.6642927,151.99,151.94,10.1283]
[1642061351401,85.9142927,151.99,151.94,10.1283]
[1642061352000,85.9142927,151.99,151.94,10.3783]
[1642061354503,85.6642927,151.99,151.94,18.7633]
[1642061354704,85.6642927,151.99,151.95,1.10326175]
[1642061354904,85.6642927,151.99,151.97,9.866]
[1642061355103,85.6642927,151.99,151.97,16.376]
[1642061355906,85.6642927,151.99,151.97,16.126]
[1642061356503,85.6642927,151.99,151.97,10.126]
[1642061356904,85.6642927,151.99,151.95,12.4999]
[1642061357104,85.6642927,151.99,151.95,9.8679]
[1642061357303,85.9142927,151.99,151.95,9.8679]
[1642061357503,85.6642927,151.99,151.95,9.8679]
[1642061359105,85.6642927,151.99,151.95,10.1179]
[1642061359705,85.6642927,151.99,151.95,9.8679]
[1642061361311,85.6642927,151.99,151.95,10.1279]
[1642061361534,85.6642927,151.99,151.95,10.3779]
[1642061361935,85.6642927,151.99,151.95,10.1279]
[1642061362537,85.9142927,151.99,151.95,10.1279]
[1642061362939,85.6642927,151.99,151.95,10.1279]
[1642061363140,85.9142927,151.99,151.95,10.1279]
[1642061363744,85.6642927,151.99,151.95,10.1279]
[1642061363941,85.9142927,151.99,151.95,10.1279]
[1642061364342,85.6642927,151.99,151.95,10.3779]
[1642061364743,85.6642927,151.99,151.95,13.0099]
[1642061366146,85.6642927,151.99,151.95,10.3779]
[1642061367847,85.6642927,151.99,151.95,76.4979]
[1642061368048,85.6642927,151.99,151.95,10.3779]
[1642061369149,85.6642927,151.99,151.96,2.632]
[1642061369350,85.6642927,151.99,151.96,12.4991]
[1642061369550,85.6642927,151.99,151.96,13.0091]
[1642061371252,85.6642927,151.99,151.96,12.7591]
[1642061371660,85.6642927,151.99,151.96,10.1271]
[1642061372954,85.6642927,151.99,151.96,10.3771]
[1642061373654,85.6642927,151.99,151.96,19.8771]
[1642061374056,85.6642927,151.99,151.96,9.75]
[1642061374254,85.6642927,151.99,151.96,9.5]
[1642061376254,85.6642927,151.99,151.96,9.76]
[1642061377254,85.6642927,151.99,151.96,19.6274]
[1642061377456,85.6642927,151.99,151.96,19.8774]
[1642061377956,85.6642927,151.99,151.96,25.8774]
[1642061380299,85.6642927,151.99,151.96,19.8774]
[1642061382059,85.6642927,151.99,151.96,19.6174]
[1642061383459,6.06439994,151.98,151.96,19.8774]
[1642061383864,85.6642927,151.99,151.96,19.8774]
[1642061384861,85.6642927,151.99,151.97,23.77547222]
[1642061385060,85.6642927,151.99,151.98,9.8662]
[1642061385460,85.6642927,151.99,151.98,10.1262]
[1642061387065,85.6642927,151.99,151.98,10.3762]
[1642061388864,85.6642927,151.99,151.98,10.1262]
[1642061389070,85.6642927,151.99,151.98,10.3762]
[1642061392570,85.6642927,151.99,151.98,10.1162]
[1642061394069,85.6642927,151.99,151.98,10.3762]
[1642061396102,85.6642927,151.99,151.98,10.1262]
[1642061397004,85.6642927,151.99,151.98,10.3762]
[1642061397402,85.6642927,151.99,151.98,10.1262]
[1642061398002,85.6642927,151.99,151.98,10.3762]
[1642061398203,85.6642927,151.99,151.98,10.1162]
[1642061398602,85.6642927,151.99,151.98,10.3762]
[1642061398803,85.6642927,151.99,151.98,10.1162]
[1642061399403,85.6642927,151.99,151.98,92.83944876]
[1642061399608,85.6642927,151.99,151.98,26.71944876]
[1642061399803,85.6642927,151.99,151.98,25.6162]
[1642061400004,85.6642927,151.99,151.98,19.6162]
[1642061400605,85.6642927,151.99,151.98,19.8762]
[1642061400807,85.6642927,151.99,151.98,19.6162]
[1642061401405,85.6642927,151.99,151.98,19.3662]
[1642061402208,85.6642927,151.99,151.98,9.5]
[1642061402804,85.6642927,151.99,151.98,9.75]
[1642061403906,85.6642927,151.99,151.98,10.01]
[1642061404106,85.6642927,151.99,151.98,9.76]
[1642061404708,91.72869264,151.99,151.98,9.76]
[1642061404908,85.6642927,151.99,151.98,10.01]
[1642061405108,85.6642927,151.99,151.98,9.76]
[1642061405409,85.6642927,151.99,151.98,10.01]
[1642061405613,85.6642927,151.99,151.98,9.76]
[1642061406011,85.6642927,151.99,151.98,10.01]
[1642061406213,85.6642927,151.99,151.98,19.8762]
[1642061406816,85.6642927,151.99,151.98,93.09944876]
[1642061407014,85.6642927,151.99,151.98,26.97944876]
[1642061407216,85.6642927,151.99,151.98,25.8762]
[1642061407616,85.6642927,151.99,151.98,19.8762]
[1642061408418,75.6642927,151.99,151.98,19.8762]
[1642061410319,75.6642927,151.99,151.98,85.9962]
[1642061410718,75.6642927,151.99,151.98,19.8762]
[1642061411321,75.6642927,151.99,151.98,19.6162]
[1642061411520,75.6642927,151.99,151.98,26.71944876]